[Event "VIII Iberoamericano Mexico 2022"]
[Site "Mexico City"]
[Date "2022.02.13"]
[Round "2.21"]
[White "Perez Gormaz, Matias"]
[Black "Martinez Morales, Geovanni"]
[Result "1-0"]
[ECO "C18"]
[WhiteElo "2404"]
[BlackElo "2098"]
[Annotator "RC"]
[PlyCount "59"]
[EventDate "2022.02.12"]
[EventType "swiss"]
[EventCountry "MEX"]
[SourceTitle "playchess.com"]
[Source "ChessBase"]
[SourceQuality "1"]
[TimeControl "5400+30"]

1. e4 {[%emt 0:00:06]} e6 {[%emt 0:00:07]} 2. d4 {[%emt 0:01:27]} d5 {[%emt 0:00:10]} 3. Nc3 {[%emt 0:01:38]} Bb4 {[%emt 0:00:53]} 4. e5 {[%emt 0:00:31]} c5 {[%emt 0:01:28]} 5. a3 {[%emt 0:00:24]} Bxc3+ {[%emt 0:00:07]} 6. bxc3 {[%emt 0:00:09]} Ne7 {[%emt 0:00:11]} 7. Qg4 {[%emt 0:00:10]} Qc7 {[%emt 0:00:05]} 8. Bd3 {[%emt 0:00:16]} cxd4 {[%emt 0:04:41]} 9. Ne2 {[%emt 0:01:01]} dxc3 {[%emt 0:01:00]} 10. Qxg7 {[%emt 0:00:32]} Rg8 {[%emt 0:00:08]} 11. Qxh7 {[%emt 0:00:30]} Nbc6 {[%emt 0:00:56]} 12. Bf4 {[%emt 0:00:39]} Bd7 {[%emt 0:04:39]} 13. O-O {[%emt 0:00:11]} O-O-O {[%emt 0:04:18]} 14. Qxf7 {[%emt 0:05:54]} Rdf8 {[%emt 0:00:57]} 15. Qh5 {[%emt 0:00:13]} Rh8 {[%emt 0:06:23]} 16. Qg4 {[%emt 0:05:20]} Rhg8 {[%emt 0:00:59]} 17. Qh3 {[%emt 0:00:23]} d4 {[%emt 0:18:36]} 18. Bg3 {[%emt 0:08:22]} Nf5 {[%emt 0:04:20]} 19. Bxf5 {[%emt 0:01:44]} Rxf5 {[%emt 0:00:16]} 20. Rfd1 {[%emt 0:02:17]} Qb6 {[%emt 0:23:51]} 21. Rab1 {[%emt 0:00:59]} Qc5 {[%emt 0:00:20]} 22. Qh4 {[%emt 0:02:38]} Rxe5 {[%emt 0:13:07]} 23. Bxe5 {[%emt 0:26:02]} Nxe5 {[%emt 0:01:29]} 24. Nxd4 {[%emt 0:02:04]} Bc6 {[%emt 0:07:06]} 25. Qh3 {[%emt 0:03:30]} Rxg2+ {[%emt 0:02:21]} 26. Qxg2 {[%emt 0:00:27]} Bxg2 {[%emt 0:00:09]} 27. Nxe6 {[%emt 0:00:20]} Nf3+ {[%emt 0:01:32]} 28. Kxg2 {[%emt 0:00:08]} Nh4+ {[%emt 0:00:45]} 29. Kg1 {[%emt 0:00:12]} Nf3+ {[%emt 0:01:09]} 30. Kh1 {[%emt 0:00:06]} 1-0

[Event "VIII Iberoamericano Mexico 2022"]
[Site "Mexico City"]
[Date "2022.02.13"]
[Round "2.26"]
[White "Zarate Manjarrez, Alfredo"]
[Black "Gemy, Jose Daniel"]
[Result "0-1"]
[ECO "A15"]
[WhiteElo "2026"]
[BlackElo "2381"]
[Annotator "RC"]
[PlyCount "64"]
[EventDate "2022.02.12"]
[EventType "swiss"]
[EventCountry "MEX"]
[SourceTitle "playchess.com"]
[Source "ChessBase"]
[SourceQuality "1"]
[TimeControl "5400+30"]

1. Nf3 {[%emt 0:04:59]} Nf6 {[%emt 0:00:10]} 2. b3 {[%emt 0:00:22]} g6 {[%emt 0:00:07]} 3. Bb2 {[%emt 0:00:06]} Bg7 {[%emt 0:00:03]} 4. c4 {[%emt 0:01:21]} O-O {[%emt 0:00:07]} 5. g3 {[%emt 0:00:05]} d6 {[%emt 0:01:48]} 6. Bg2 {[%emt 0:00:08]} e5 {[%emt 0:00:06]} 7. d3 {[%emt 0:00:41]} Nc6 {[%emt 0:04:46]} 8. O-O {[%emt 0:00:59]} a5 {[%emt 0:03:48]} 9. a3 {[%emt 0:01:04]} Bd7 {[%emt 0:01:38]} 10. Nbd2 {[%emt 0:01:54]} Nh5 {[%emt 0:03:32]} 11. Ra2 {[%emt 0:05:30]} f5 {[%emt 0:00:16]} 12. e3 {[%emt 0:01:21]} Qe7 {[%emt 0:03:37]} 13. d4 {[%emt 0:21:33]} e4 {[%emt 0:03:04]} 14. Ne1 {[%emt 0:00:04]} Nf6 {[%emt 0:02:13]} 15. Nc2 {[%emt 0:07:40]} h5 {[%emt 0:02:13]} 16. Qa1 {[%emt 0:03:11]} h4 {[%emt 0:06:20]} 17. b4 {[%emt 0:00:05]} d5 {[%emt 0:06:02]} 18. b5 {[%emt 0:00:56]} Nd8 {[%emt 0:00:09]} 19. a4 {[%emt 0:00:20]} Qf7 {[%emt 0:01:18]} 20. c5 {[%emt 0:08:39]} g5 {[%emt 0:01:20]} 21. Qd1 {[%emt 0:02:41]} g4 {[%emt 0:00:21]} 22. Nb3 {[%emt 0:07:29]} Ne6 {[%emt 0:00:41]} 23. c6 {[%emt 0:07:08]} bxc6 {[%emt 0:00:08]} 24. bxc6 {[%emt 0:00:04]} Bxc6 {[%emt 0:00:08]} 25. Bc3 {[%emt 0:00:49]} Ng5 {[%emt 0:01:12]} 26. Nc5 {[%emt 0:15:26]} Rfe8 {[%emt 0:01:12]} 27. Na3 {[%emt 0:00:16]} Qg6 {[%emt 0:01:55]} 28. Nb5 {[%emt 0:00:28]} Re7 {[%emt 0:00:27]} 29. Qb3 {[%emt 0:01:30]} Nf3+ {[%emt 0:00:43]} 30. Bxf3 {[%emt 0:04:54]} gxf3 {[%emt 0:00:05]} 31. Kh1 {[%emt 0:00:35]} Qg4 {[%emt 0:00:35]} 32. Bxa5 {[%emt 0:00:25]} Qh3 0-1

[Event "VIII Iberoamericano Mexico 2022"]
[Site "Mexico City"]
[Date "2022.02.13"]
[Round "2.27"]
[White "Lopez Gonzalez, Abel Fabian"]
[Black "Rosales Campos, Paul Ivan"]
[Result "0-1"]
[ECO "D35"]
[WhiteElo "2379"]
[BlackElo "2039"]
[Annotator "ChessBase"]
[PlyCount "24"]
[EventDate "2022.02.12"]
[EventType "swiss"]
[EventCountry "MEX"]
[SourceTitle "playchess.com"]
[Source "ChessBase"]
[SourceQuality "1"]
[TimeControl "5400+30"]

1. d4 {[%emt 1:31:00]} d5 {[%emt 0:02:33]} 2. c4 {[%emt 0:00:00]} e6 {[%emt 0:00:28]} 3. Nc3 {[%emt 0:00:00]} Nf6 {[%emt 0:00:29]} 4. cxd5 {[%emt 0:00:00]} exd5 {[%emt 0:00:27]} 5. Bg5 {[%emt 0:00:00]} c6 {[%emt 0:00:48]} 6. e3 {[%emt 0:00:00]} Bd6 {[%emt 0:00:55]} 7. Bd3 {[%emt 0:00:00]} O-O {[%emt 0:01:16]} 8. Qc2 {[%emt 0:00:00]} h6 {[%emt 0:01:14]} 9. Bh4 {[%emt 0:00:00]} Re8 {[%emt 0:00:47]} 10. Nf3 {[%emt 0:00:00]} Be6 {[%emt 0:01:24]} 11. Ne5 {[%emt 0:00:00]} c5 {[%emt 0:01:31]} 12. Bb5 {[%emt 0:00:00]} cxd4 {[%emt 0:15:17]} 0-1

[Event "VIII Iberoamericano Mexico 2022"]
[Site "Mexico City"]
[Date "2022.02.13"]
[Round "2.28"]
[White "Ocampo, Cristina"]
[Black "Galaviz Medina, Sion Radamantys"]
[Result "0-1"]
[ECO "B53"]
[WhiteElo "2024"]
[BlackElo "2374"]
[Annotator "ChessBase"]
[PlyCount "36"]
[EventDate "2022.02.12"]
[EventType "swiss"]
[EventCountry "MEX"]
[SourceTitle "playchess.com"]
[Source "ChessBase"]
[SourceQuality "1"]
[TimeControl "5400+30"]

1. e4 {[%emt 0:07:26]} c5 {[%emt 0:00:03]} 2. Nf3 {[%emt 0:00:21]} d6 {[%emt 0:00:08]} 3. d4 cxd4 {[%emt 0:00:07]} 4. Qxd4 {[%emt 0:00:14]} Nc6 {[%emt 0:00:04]} 5. Qe3 {[%emt 0:01:28]} Nf6 {[%emt 0:09:46]} 6. h3 {[%emt 0:00:21]} e6 {[%emt 0:04:43]} 7. c4 {[%emt 0:01:52]} Nb4 {[%emt 0:16:47]} 8. Qb3 {[%emt 0:14:49]} d5 {[%emt 0:17:37]} 9. cxd5 {[%emt 0:03:34]} Nxe4 {[%emt 0:22:28]} 10. dxe6 {[%emt 0:41:58]} Bxe6 {[%emt 0:12:52]} 11. Bb5+ {[%emt 0:01:08]} Nc6 {[%emt 0:00:07]} 12. Qa4 {[%emt 0:01:52]} Bd5 {[%emt 0:03:46]} 13. O-O {[%emt 0:08:13]} Bc5 {[%emt 0:00:22]} 14. Nd4 {[%emt 0:09:40]} O-O {[%emt 0:02:15]} 15. Be3 {[%emt 0:03:23]} Nxd4 {[%emt 0:01:31]} 16. Bxd4 {[%emt 0:00:30]} a6 {[%emt 0:02:07]} 17. Bxc5 Nxc5 {[%emt 0:00:05]} 18. Qd4 {[%emt 0:02:06]} Ne6 {[%emt 0:00:05]} 0-1

[Event "VIII Iberoamericano Mexico 2022"]
[Site "Mexico City"]
[Date "2022.02.13"]
[Round "2.29"]
[White "Veiga, Jose Francisco R P N"]
[Black "Fernandez Rivero, Karla July"]
[Result "1-0"]
[ECO "C84"]
[WhiteElo "2366"]
[BlackElo "2025"]
[Annotator "ChessBase"]
[PlyCount "65"]
[EventDate "2022.02.12"]
[EventType "swiss"]
[EventCountry "MEX"]
[SourceTitle "playchess.com"]
[Source "ChessBase"]
[SourceQuality "1"]
[TimeControl "5400+30"]

1. e4 {[%emt 0:00:10]} e5 {[%emt 0:00:12]} 2. Nf3 {[%emt 0:00:07]} Nc6 {[%emt 0:00:10]} 3. Bb5 {[%emt 0:00:19]} a6 {[%emt 0:00:21]} 4. Ba4 {[%emt 0:00:06]} Nf6 {[%emt 0:00:17]} 5. O-O {[%emt 0:00:07]} Be7 {[%emt 0:00:14]} 6. d3 {[%emt 0:00:07]} b5 {[%emt 0:00:23]} 7. Bb3 {[%emt 0:00:05]} d6 {[%emt 0:00:19]} 8. a3 {[%emt 0:00:18]} Na5 {[%emt 0:00:36]} 9. Ba2 {[%emt 0:00:42]} c5 {[%emt 0:00:15]} 10. Nc3 {[%emt 0:01:09]} Be6 {[%emt 0:00:44]} 11. Bg5 {[%emt 0:02:28]} O-O {[%emt 0:01:47]} 12. Bxf6 {[%emt 0:06:15]} Bxf6 {[%emt 0:00:11]} 13. Nd5 {[%emt 0:00:53]} Nc6 {[%emt 0:02:27]} 14. c3 {[%emt 0:02:05]} g6 {[%emt 0:01:19]} 15. Qd2 {[%emt 0:06:19]} Bg7 {[%emt 0:06:48]} 16. Ng5 {[%emt 0:06:15]} Rb8 {[%emt 0:05:39]} 17. f4 {[%emt 0:05:57]} Qd7 {[%emt 0:14:41]} 18. Qe2 {[%emt 0:17:45]} Bg4 {[%emt 0:14:42]} 19. Qe3 {[%emt 0:04:13]} h6 {[%emt 0:09:53]} 20. Nf3 {[%emt 0:00:08]} Kh7 {[%emt 0:03:01]} 21. h3 {[%emt 0:01:24]} Bxf3 {[%emt 0:06:11]} 22. Rxf3 {[%emt 0:01:03]} exf4 {[%emt 0:00:31]} 23. Rxf4 {[%emt 0:00:23]} Ne5 {[%emt 0:06:18]} 24. Raf1 {[%emt 0:02:17]} c4 {[%emt 0:03:07]} 25. d4 {[%emt 0:03:07]} Nd3 {[%emt 0:05:26]} 26. Nf6+ Bxf6 {[%emt 0:00:09]} 27. Rxf6 {[%emt 0:00:16]} Qe7 {[%emt 0:03:55]} 28. b3 {[%emt 0:05:27]} d5 {[%emt 0:06:28]} 29. e5 {[%emt 0:01:55]} Kg7 {[%emt 0:02:45]} 30. b4 {[%emt 0:01:25]} a5 {[%emt 0:00:56]} 31. Bb1 {[%emt 0:00:05]} Nb2 {[%emt 0:01:14]} 32. e6 {[%emt 0:01:04]} Rbe8 {[%emt 0:04:48]} 33. Qe5 {[%emt 0:01:27]} 1-0

[Event "VIII Iberoamericano Mexico 2022"]
[Site "Mexico City"]
[Date "2022.02.13"]
[Round "2.30"]
[White "Jorajuria Mendoza, Zuben Algenubi"]
[Black "Santos, Jose Guilherme B Lim"]
[Result "0-1"]
[ECO "B86"]
[WhiteElo "1582"]
[BlackElo "2363"]
[Annotator "ChessBase"]
[PlyCount "128"]
[EventDate "2022.02.12"]
[EventType "swiss"]
[EventCountry "MEX"]
[SourceTitle "playchess.com"]
[Source "ChessBase"]
[SourceQuality "1"]
[TimeControl "5400+30"]

1. e4 {[%emt 0:00:04]} c5 {[%emt 0:02:14]} 2. Nf3 {[%emt 0:00:12]} d6 {[%emt 0:00:13]} 3. d4 {[%emt 0:00:25]} cxd4 {[%emt 0:00:06]} 4. Nxd4 {[%emt 0:00:09]} Nf6 {[%emt 0:00:05]} 5. Nc3 {[%emt 0:00:10]} a6 {[%emt 0:00:03]} 6. Bc4 {[%emt 0:00:28]} e6 {[%emt 0:00:16]} 7. Bb3 {[%emt 0:00:24]} Nbd7 {[%emt 0:00:08]} 8. O-O {[%emt 0:00:55]} Nc5 {[%emt 0:00:07]} 9. Bg5 {[%emt 0:01:17]} Be7 {[%emt 0:00:49]} 10. Qe2 {[%emt 0:01:02]} Nfxe4 {[%emt 0:13:57]} 11. Nxe4 {[%emt 0:03:11]} Bxg5 {[%emt 0:00:14]} 12. Nxc5 {[%emt 0:00:27]} dxc5 {[%emt 0:00:08]} 13. Nf5 {[%emt 0:01:03]} O-O {[%emt 0:01:14]} 14. Ng3 {[%emt 0:04:11]} Qc7 {[%emt 0:01:45]} 15. c3 {[%emt 0:02:12]} Bd7 {[%emt 0:00:18]} 16. Qg4 {[%emt 0:01:36]} Qf4 {[%emt 0:02:50]} 17. Qh5 {[%emt 0:05:42]} g6 {[%emt 0:01:52]} 18. Qe2 {[%emt 0:00:30]} Bb5 {[%emt 0:00:23]} 19. c4 {[%emt 0:00:40]} Bc6 {[%emt 0:00:14]} 20. Rad1 {[%emt 0:01:56]} Rad8 {[%emt 0:00:16]} 21. Bc2 {[%emt 0:03:07]} Rxd1 {[%emt 0:03:40]} 22. Rxd1 {[%emt 0:00:11]} Rd8 {[%emt 0:00:14]} 23. Bd3 {[%emt 0:04:27]} h5 {[%emt 0:01:20]} 24. Nf1 {[%emt 0:15:12]} h4 {[%emt 0:00:06]} 25. Re1 {[%emt 0:01:08]} Rd4 {[%emt 0:04:38]} 26. Ne3 {[%emt 0:03:05]} Bf6 {[%emt 0:02:18]} 27. Nc2 {[%emt 0:06:27]} Rd8 {[%emt 0:00:37]} 28. Ne3 {[%emt 0:00:37]} h3 {[%emt 0:02:27]} 29. gxh3 {[%emt 0:03:17]} Bf3 {[%emt 0:00:25]} 30. Qc2 {[%emt 0:01:02]} Kg7 {[%emt 0:06:28]} 31. Bf1 {[%emt 0:05:26]} Be5 {[%emt 0:00:30]} 32. Ng4 {[%emt 0:01:00]} Bxg4 {[%emt 0:00:16]} 33. Rxe5 {[%emt 0:00:13]} Qxe5 {[%emt 0:00:05]} 34. hxg4 {[%emt 0:00:08]} Rd4 {[%emt 0:00:13]} 35. h3 {[%emt 0:01:30]} Qf4 {[%emt 0:00:07]} 36. Qc3 {[%emt 0:00:35]} Kg8 {[%emt 0:00:34]} 37. b4 {[%emt 0:02:00]} Rd2 {[%emt 0:00:10]} 38. Qe3 {[%emt 0:00:33]} Qxe3 {[%emt 0:00:17]} 39. fxe3 {[%emt 0:00:11]} cxb4 {[%emt 0:00:01]} 40. c5 {[%emt 0:00:16]} Rxa2 {[%emt 0:00:08]} 41. Bg2 {[%emt 0:00:19]} b3 {[%emt 0:00:07]} 42. Bxb7 {[%emt 0:00:07]} b2 {[%emt 0:00:04]} 43. Be4 {[%emt 0:00:07]} Ra1+ {[%emt 0:00:03]} 44. Kg2 {[%emt 0:00:12]} b1=Q {[%emt 0:00:05]} 45. Bxb1 {[%emt 0:00:08]} Rxb1 {[%emt 0:00:03]} 46. e4 {[%emt 0:00:10]} Rc1 {[%emt 0:00:01]} 47. e5 {[%emt 0:00:11]} Rxc5 {[%emt 0:00:05]} 48. h4 {[%emt 0:00:08]} a5 {[%emt 0:00:02]} 49. h5 {[%emt 0:00:12]} a4 {[%emt 0:00:01]} 50. hxg6 {[%emt 0:00:09]} a3 {[%emt 0:00:02]} 51. gxf7+ {[%emt 0:00:13]} Kxf7 {[%emt 0:00:01]} 52. g5 {[%emt 0:00:15]} a2 {[%emt 0:00:03]} 53. g6+ {[%emt 0:00:09]} Kxg6 {[%emt 0:00:03]} 54. Kf3 {[%emt 0:00:08]} a1=Q {[%emt 0:00:03]} 55. Ke4 {[%emt 0:00:07]} Rc4+ {[%emt 0:00:04]} 56. Kd3 {[%emt 0:00:12]} Qd4+ {[%emt 0:00:01]} 57. Ke2 {[%emt 0:00:14]} Qxe5+ {[%emt 0:00:01]} 58. Kd2 {[%emt 0:00:13]} Qc3+ {[%emt 0:00:02]} 59. Ke2 {[%emt 0:00:12]} Re4+ {[%emt 0:00:02]} 60. Kf2 {[%emt 0:00:15]} Qe3+ {[%emt 0:00:02]} 61. Kf1 {[%emt 0:00:09]} Rf4+ {[%emt 0:00:01]} 62. Kg2 {[%emt 0:00:11]} Qf3+ {[%emt 0:00:01]} 63. Kg1 {[%emt 0:00:12]} Qg3+ {[%emt 0:00:02]} 64. Kh1 {[%emt 0:00:07]} Rh4# {[%emt 0:00:02]} 0-1

[Event "VIII Iberoamericano Mexico 2022"]
[Site "Mexico City"]
[Date "2022.02.13"]
[Round "2.31"]
[White "Garcia Guerrero, Isaac Antonio"]
[Black "Lopez De Nava Hernandez, Carlos"]
[Result "1-0"]
[ECO "D12"]
[WhiteElo "2338"]
[BlackElo "2023"]
[Annotator "ChessBase"]
[PlyCount "101"]
[EventDate "2022.02.12"]
[EventType "swiss"]
[EventCountry "MEX"]
[SourceTitle "playchess.com"]
[Source "ChessBase"]
[SourceQuality "1"]
[TimeControl "5400+30"]

1. c4 {[%emt 0:00:02]} c6 {[%emt 0:20:41]} 2. Nf3 {[%emt 0:01:10]} Nf6 {[%emt 0:04:26]} 3. Nc3 {[%emt 0:00:19]} d5 {[%emt 0:00:16]} 4. e3 {[%emt 0:00:07]} Bf5 {[%emt 0:01:16]} 5. cxd5 {[%emt 0:00:39]} Nxd5 {[%emt 0:01:56]} 6. d4 {[%emt 0:00:26]} e6 {[%emt 0:00:53]} 7. Bd3 {[%emt 0:01:16]} Bg6 {[%emt 0:04:48]} 8. e4 {[%emt 0:04:04]} Nf6 {[%emt 0:02:07]} 9. O-O {[%emt 0:02:07]} Be7 {[%emt 0:01:21]} 10. h3 {[%emt 0:17:22]} O-O {[%emt 0:05:35]} 11. Qe2 {[%emt 0:02:26]} Nbd7 {[%emt 0:04:49]} 12. Rd1 {[%emt 0:00:57]} Re8 {[%emt 0:06:55]} 13. Be3 {[%emt 0:03:54]} Bb4 {[%emt 0:14:01]} 14. Bg5 {[%emt 0:09:43]} e5 {[%emt 0:05:01]} 15. dxe5 {[%emt 0:14:14]} Nxe5 {[%emt 0:00:14]} 16. Nxe5 {[%emt 0:00:21]} Rxe5 {[%emt 0:00:49]} 17. Bf4 {[%emt 0:00:31]} Re8 {[%emt 0:03:32]} 18. f3 {[%emt 0:02:56]} Qe7 {[%emt 0:00:59]} 19. Rac1 {[%emt 0:06:04]} Rad8 {[%emt 0:00:24]} 20. Be3 {[%emt 0:01:03]} Bc5 {[%emt 0:15:31]} 21. Bxc5 {[%emt 0:04:35]} Qxc5+ {[%emt 0:00:02]} 22. Qf2 {[%emt 0:00:11]} Qxf2+ {[%emt 0:00:29]} 23. Kxf2 {[%emt 0:00:02]} Kf8 {[%emt 0:00:08]} 24. b4 {[%emt 0:03:56]} Rd4 {[%emt 0:01:48]} 25. a3 {[%emt 0:00:58]} Red8 {[%emt 0:00:40]} 26. Ke3 {[%emt 0:00:37]} Ne8 {[%emt 0:03:09]} 27. Ne2 {[%emt 0:04:20]} R4d6 {[%emt 0:00:38]} 28. Nf4 {[%emt 0:01:03]} Nc7 {[%emt 0:00:14]} 29. Be2 {[%emt 0:02:14]} Rxd1 {[%emt 0:00:52]} 30. Bxd1 {[%emt 0:00:10]} Ke7 {[%emt 0:00:47]} 31. Bb3 {[%emt 0:01:36]} Nb5 {[%emt 0:01:01]} 32. a4 {[%emt 0:00:49]} Nd6 {[%emt 0:00:18]} 33. g4 {[%emt 0:01:46]} f6 {[%emt 0:00:21]} 34. Ne6 {[%emt 0:01:36]} Rg8 {[%emt 0:00:10]} 35. Nd4 {[%emt 0:01:45]} Rc8 {[%emt 0:00:02]} 36. h4 {[%emt 0:06:12]} Bf7 {[%emt 0:00:51]} 37. g5 {[%emt 0:00:42]} Bxb3 {[%emt 0:00:44]} 38. Nxb3 {[%emt 0:00:17]} Rd8 {[%emt 0:00:51]} 39. Nd4 {[%emt 0:00:31]} Rd7 {[%emt 0:00:27]} 40. f4 {[%emt 0:00:41]} Kf7 {[%emt 0:00:43]} 41. gxf6 {[%emt 0:00:48]} gxf6 {[%emt 0:00:05]} 42. e5 {[%emt 0:01:21]} fxe5 {[%emt 0:00:57]} 43. fxe5 {[%emt 0:00:12]} Re7 {[%emt 0:00:21]} 44. Kf4 {[%emt 0:00:50]} Ne8 {[%emt 0:00:33]} 45. Rf1 {[%emt 0:01:15]} Nc7 {[%emt 0:00:09]} 46. e6+ {[%emt 0:00:58]} Ke8 {[%emt 0:00:48]} 47. Ke5 {[%emt 0:00:16]} Nd5 {[%emt 0:00:41]} 48. Nf5 {[%emt 0:00:49]} Rc7 {[%emt 0:00:30]} 49. Nd6+ {[%emt 0:00:15]} Ke7 {[%emt 0:00:19]} 50. Rf7+ {[%emt 0:00:11]} Kd8 {[%emt 0:00:26]} 51. Rf8+ {[%emt 0:00:08]} 1-0

[Event "VIII Iberoamericano Mexico 2022"]
[Site "Mexico City"]
[Date "2022.02.13"]
[Round "2.33"]
[White "Noboa Silva, Kevin"]
[Black "Diaz Osorio, Ana Carolina"]
[Result "1-0"]
[ECO "D36"]
[WhiteElo "2331"]
[BlackElo "1627"]
[Annotator "ChessBase"]
[PlyCount "51"]
[EventDate "2022.02.12"]
[EventType "swiss"]
[EventCountry "MEX"]
[SourceTitle "playchess.com"]
[Source "ChessBase"]
[SourceQuality "1"]
[TimeControl "5400+30"]

1. d4 {[%emt 0:00:04]} d5 {[%emt 0:06:15]} 2. c4 {[%emt 0:00:15]} e6 {[%emt 0:00:25]} 3. Nc3 {[%emt 0:00:13]} Nf6 {[%emt 0:00:21]} 4. cxd5 {[%emt 0:00:20]} exd5 {[%emt 0:00:58]} 5. Bg5 {[%emt 0:00:24]} c6 {[%emt 0:04:12]} 6. e3 {[%emt 0:00:57]} Nbd7 {[%emt 0:01:15]} 7. Bd3 {[%emt 0:00:43]} Be7 {[%emt 0:01:03]} 8. Nge2 {[%emt 0:00:54]} O-O {[%emt 0:01:41]} 9. Qc2 {[%emt 0:01:11]} Re8 {[%emt 0:04:20]} 10. O-O {[%emt 0:01:05]} Nf8 {[%emt 0:00:44]} 11. Rad1 {[%emt 0:01:20]} g6 {[%emt 0:01:40]} 12. f3 {[%emt 0:02:43]} Ne6 {[%emt 0:02:20]} 13. Bh4 {[%emt 0:00:34]} Ng7 {[%emt 0:08:05]} 14. Bf2 {[%emt 0:02:53]} Bf5 {[%emt 0:09:47]} 15. e4 {[%emt 0:02:10]} dxe4 {[%emt 0:00:31]} 16. fxe4 {[%emt 0:00:16]} Bg4 {[%emt 0:01:22]} 17. h3 {[%emt 0:02:14]} Bd7 {[%emt 0:08:03]} 18. a3 {[%emt 0:06:52]} Ne6 {[%emt 0:05:18]} 19. Bc4 {[%emt 0:07:18]} Ng5 {[%emt 0:06:43]} 20. Be3 {[%emt 0:02:32]} h6 {[%emt 0:04:11]} 21. Bxg5 {[%emt 0:01:26]} hxg5 {[%emt 0:00:12]} 22. e5 {[%emt 0:00:09]} Nd5 {[%emt 0:00:52]} 23. Nxd5 {[%emt 0:00:42]} cxd5 {[%emt 0:00:05]} 24. Bxd5 {[%emt 0:00:10]} Rf8 {[%emt 0:00:54]} 25. Qxg6+ {[%emt 0:01:03]} Kh8 {[%emt 0:00:06]} 26. Bxf7 {[%emt 1:05:02]} 1-0

[Event "VIII Iberoamericano Mexico 2022"]
[Site "Mexico City"]
[Date "2022.02.13"]
[Round "2.37"]
[White "Sanchez Garcia, Oscar Ernesto"]
[Black "Medina Diaz, Rafael Alejandro"]
[Result "0-1"]
[ECO "D02"]
[WhiteElo "1765"]
[BlackElo "2287"]
[Annotator "ChessBase"]
[PlyCount "76"]
[EventDate "2022.02.12"]
[EventType "swiss"]
[EventCountry "MEX"]
[SourceTitle "playchess.com"]
[Source "ChessBase"]
[SourceQuality "1"]
[TimeControl "5400+30"]

1. Nf3 {[%emt 0:03:57]} d5 {[%emt 0:00:09]} 2. d4 {[%emt 0:00:39]} Nf6 {[%emt 0:00:08]} 3. Bf4 {[%emt 0:00:07]} g6 {[%emt 0:01:08]} 4. Nbd2 {[%emt 0:00:31]} Bg7 {[%emt 0:00:08]} 5. e3 {[%emt 0:00:29]} c5 {[%emt 0:00:29]} 6. Bd3 {[%emt 0:03:18]} Qb6 {[%emt 0:01:18]} 7. Rb1 {[%emt 0:08:05]} Nc6 {[%emt 0:01:11]} 8. c3 {[%emt 0:06:18]} O-O {[%emt 0:00:15]} 9. O-O {[%emt 0:00:21]} Nh5 {[%emt 0:00:47]} 10. Bg5 {[%emt 0:07:50]} e5 {[%emt 0:05:25]} 11. dxe5 {[%emt 0:00:25]} Nxe5 {[%emt 0:00:14]} 12. Nxe5 {[%emt 0:00:21]} Bxe5 {[%emt 0:00:06]} 13. e4 {[%emt 0:02:54]} Bf4 {[%emt 0:13:40]} 14. Bh4 {[%emt 0:04:46]} Be6 {[%emt 0:04:17]} 15. exd5 {[%emt 0:08:42]} Bxd5 {[%emt 0:01:00]} 16. c4 {[%emt 0:04:33]} Bc6 {[%emt 0:09:35]} 17. Ne4 {[%emt 0:04:37]} Rfe8 {[%emt 0:02:29]} 18. Re1 {[%emt 0:00:23]} Be5 {[%emt 0:05:16]} 19. Qc2 {[%emt 0:06:43]} Nf4 {[%emt 0:09:45]} 20. Bf1 {[%emt 0:00:24]} f5 {[%emt 0:12:09]} 21. Ng3 {[%emt 0:15:28]} Bg7 {[%emt 0:01:50]} 22. Be7 {[%emt 0:03:14]} Bd4 {[%emt 0:11:40]} 23. b4 {[%emt 0:04:36]} Qc7 {[%emt 0:02:00]} 24. Bxc5 {[%emt 0:06:03]} Bxc5 {[%emt 0:00:56]} 25. bxc5 {[%emt 0:00:03]} Qa5 {[%emt 0:00:29]} 26. Rxe8+ {[%emt 0:05:25]} Rxe8 {[%emt 0:00:44]} 27. Rd1 {[%emt 0:00:55]} Qxc5 {[%emt 0:02:49]} 28. Qd2 {[%emt 0:02:02]} Qe5 {[%emt 0:00:18]} 29. h4 {[%emt 0:00:25]} h5 {[%emt 0:02:14]} 30. Qd6 {[%emt 0:01:03]} Qxd6 {[%emt 0:01:14]} 31. Rxd6 {[%emt 0:00:06]} Re5 {[%emt 0:02:30]} 32. Rd2 {[%emt 0:00:38]} Kf7 {[%emt 0:00:24]} 33. Ne2 {[%emt 0:00:47]} Nxe2+ {[%emt 0:01:40]} 34. Bxe2 {[%emt 0:00:03]} Ke6 {[%emt 0:01:05]} 35. f4 {[%emt 0:00:13]} Re4 {[%emt 0:00:40]} 36. g3 {[%emt 0:00:15]} Re3 {[%emt 0:00:05]} 37. Kf2 {[%emt 0:00:09]} Rc3 {[%emt 0:00:06]} 38. Bf1 {[%emt 0:01:10]} Rf3+ {[%emt 0:09:17]} 0-1